[Event "Titled Tuesday Blitz November 15 Early 2022"]
[White "Neiksans, Arturs"]
[Black "Rosenberg, Evan S"]
[WhiteFideId "11601388"]
[BlackFideId "2019299"]
[WhiteElo "2497"]
[BlackElo "2369"]
[Result "1-0"]
[Round "01"]
[TimeControl "180+1"]
[Date "2022.11.16"]
[WhiteClock "0:00:20"]
[BlackClock "0:00:01"]

1. Nf3 {[%clk 0:03:00]}  d5 {[%clk 0:02:59]} 2. g3 {[%clk 0:03:01]}  Nd7 {[%clk 0:02:59]} 3. d4 {[%clk 0:03:00]}  Nb6 {[%clk 0:02:56]} 4. a4 {[%clk 0:02:57]}  a5 {[%clk 0:02:54]} 5. Nc3 {[%clk 0:02:57]}  Nf6 {[%clk 0:02:54]} 6. Bg2 {[%clk 0:02:46]}  Bf5 {[%clk 0:02:49]} 7. Nh4 {[%clk 0:02:46]}  Bg4 {[%clk 0:02:44]} 8. h3 {[%clk 0:02:44]}  Bh5 {[%clk 0:02:44]} 9. g4 {[%clk 0:02:44]}  Bg6 {[%clk 0:02:41]} 10. Nxg6 {[%clk 0:02:42]}  hxg6 {[%clk 0:02:41]} 11. g5 {[%clk 0:02:31]}  Nh5 {[%clk 0:02:31]} 12. e3 {[%clk 0:02:31]}  e6 {[%clk 0:02:27]} 13. h4 {[%clk 0:02:28]}  c6 {[%clk 0:02:26]} 14. b3 {[%clk 0:02:22]}  Bb4 {[%clk 0:02:18]} 15. Bd2 {[%clk 0:02:21]}  Bd6 {[%clk 0:02:09]} 16. Qg4 {[%clk 0:02:16]}  e5 {[%clk 0:01:49]} 17. Ne2 {[%clk 0:02:08]}  Qe7 {[%clk 0:01:33]} 18. Bc3 {[%clk 0:02:02]}  e4 {[%clk 0:01:11]} 19. Bb2 {[%clk 0:01:58]}  O-O {[%clk 0:01:05]} 20. Kd2 {[%clk 0:01:30]}  f5 {[%clk 0:01:01]} 21. gxf6 {[%clk 0:01:29]}  Rxf6 {[%clk 0:01:02]} 22. Raf1 {[%clk 0:01:23]}  Raf8 {[%clk 0:00:59]} 23. f4 {[%clk 0:01:23]}  exf3 {[%clk 0:00:57]} 24. Rxf3 {[%clk 0:01:23]}  Rxf3 {[%clk 0:00:56]} 25. Bxf3 {[%clk 0:01:23]}  Re8 {[%clk 0:00:34]} 26. Qg5 {[%clk 0:01:19]}  Nf6 {[%clk 0:00:34]} 27. Nc3 {[%clk 0:01:14]}  Bb4 {[%clk 0:00:33]} 28. Re1 {[%clk 0:01:10]}  Nc8 {[%clk 0:00:28]} 29. Qxg6 {[%clk 0:01:06]}  Nd6 {[%clk 0:00:23]} 30. Kd1 {[%clk 0:01:04]}  Nde4 {[%clk 0:00:20]} 31. Bxe4 {[%clk 0:01:05]}  Nxe4 {[%clk 0:00:20]} 32. Nxe4 {[%clk 0:01:05]}  Bxe1 {[%clk 0:00:18]} 33. Ng5 {[%clk 0:01:06]}  Qf6 {[%clk 0:00:06]} 34. Qh7+ {[%clk 0:01:02]}  Kf8 {[%clk 0:00:06]} 35. Qd3 {[%clk 0:00:54]}  Qf2 {[%clk 0:00:03]} 36. e4 {[%clk 0:00:48]}  dxe4 {[%clk 0:00:03]} 37. Nxe4 {[%clk 0:00:49]}  Rxe4 {[%clk 0:00:03]} 38. d5 {[%clk 0:00:44]}  cxd5 {[%clk 0:00:02]} 39. Qxd5 {[%clk 0:00:45]}  Rd4+ {[%clk 0:00:02]} 40. Qxd4 {[%clk 0:00:44]}  Qxd4+ {[%clk 0:00:03]} 41. Bxd4 {[%clk 0:00:44]}  Bxh4 {[%clk 0:00:04]} 42. Bb6 {[%clk 0:00:43]}  Kf7 {[%clk 0:00:02]} 43. Ke2 {[%clk 0:00:42]}  g5 {[%clk 0:00:02]} 44. Bxa5 {[%clk 0:00:40]}  g4 {[%clk 0:00:03]} 45. Ke3 {[%clk 0:00:40]}  Bg5+ {[%clk 0:00:02]} 46. Ke4 {[%clk 0:00:40]}  Ke6 {[%clk 0:00:03]} 47. Be1 {[%clk 0:00:39]}  Be7 {[%clk 0:00:03]} 48. Bg3 {[%clk 0:00:39]}  Bd6 {[%clk 0:00:03]} 49. Bxd6 {[%clk 0:00:25]}  Kxd6 {[%clk 0:00:04]} 50. b4 {[%clk 0:00:21]}  g3 {[%clk 0:00:03]} 51. Kf3 {[%clk 0:00:21]}  Kd5 {[%clk 0:00:04]} 52. a5 {[%clk 0:00:19]}  Kc4 {[%clk 0:00:04]} 53. c3 {[%clk 0:00:20]}  Kxc3 {[%clk 0:00:03]} 54. b5 {[%clk 0:00:20]}  Kb4 {[%clk 0:00:01]} 55. a6 {[%clk 0:00:20]} 1-0


[Site "https://www.chess.com"]

[Event "Titled Tuesday Blitz November 15 Early 2022"]
[White "Nemurov, Aleksandr"]
[Black "Svane, Frederik"]
[WhiteFideId "4194187"]
[BlackFideId "12923044"]
[WhiteElo "2190"]
[BlackElo "2466"]
[Result "0-1"]
[Round "01"]
[TimeControl "180+1"]
[Date "2022.11.16"]
[WhiteClock "0:01:28"]
[BlackClock "0:02:24"]

1. d4 {[%clk 0:01:48]}  Nf6 {[%clk 0:02:47]} 2. c4 {[%clk 0:01:47]}  e6 {[%clk 0:02:47]} 3. Nf3 {[%clk 0:01:42]}  d5 {[%clk 0:02:47]} 4. Nc3 {[%clk 0:01:42]}  dxc4 {[%clk 0:02:43]} 5. e3 {[%clk 0:01:41]}  a6 {[%clk 0:02:43]} 6. Bxc4 {[%clk 0:01:41]}  b5 {[%clk 0:02:43]} 7. Bd3 {[%clk 0:01:41]}  Bb7 {[%clk 0:02:42]} 8. O-O {[%clk 0:01:42]}  Nbd7 {[%clk 0:02:42]} 9. e4 {[%clk 0:01:41]}  b4 {[%clk 0:02:43]} 10. Na4 {[%clk 0:01:38]}  Nxe4 {[%clk 0:02:39]} 11. Re1 {[%clk 0:01:34]}  Nef6 {[%clk 0:02:38]} 12. Ne5 {[%clk 0:01:34]}  Nxe5 {[%clk 0:02:31]} 13. dxe5 {[%clk 0:01:35]}  Qd5 {[%clk 0:02:30]} 14. f3 {[%clk 0:01:33]}  O-O-O {[%clk 0:02:22]} 15. exf6 {[%clk 0:01:28]}  Qxd3 {[%clk 0:02:22]} 16. Qxd3 {[%clk 0:01:27]}  Rxd3 {[%clk 0:02:22]} 17. fxg7 {[%clk 0:01:28]}  Bxg7 {[%clk 0:02:23]} 18. Nc5 {[%clk 0:01:28]}  Bd4+ {[%clk 0:02:24]} 0-1


[Site "https://www.chess.com"]

[Event "Titled Tuesday Blitz November 15 Early 2022"]
[White "Orlov, Georgi"]
[Black "Gerbelli Neto, Eduardo"]
[WhiteFideId "2011271"]
[BlackFideId "2103281"]
[WhiteElo "2547"]
[BlackElo "2178"]
[Result "0-1"]
[Round "01"]
[TimeControl "180+1"]
[Date "2022.11.16"]
[WhiteClock "0:00:07"]
[BlackClock "0:00:12"]

1. Nf3 {[%clk 0:02:50]}  Nf6 {[%clk 0:02:59]} 2. c4 {[%clk 0:02:50]}  c5 {[%clk 0:02:59]} 3. Nc3 {[%clk 0:02:49]}  d5 {[%clk 0:02:59]} 4. cxd5 {[%clk 0:02:49]}  Nxd5 {[%clk 0:03:00]} 5. e4 {[%clk 0:02:49]}  Nb4 {[%clk 0:03:00]} 6. Bc4 {[%clk 0:02:46]}  Nd3+ {[%clk 0:02:58]} 7. Kf1 {[%clk 0:02:40]}  Nf4 {[%clk 0:02:58]} 8. d3 {[%clk 0:02:36]}  Ne6 {[%clk 0:02:56]} 9. h4 {[%clk 0:02:20]}  g6 {[%clk 0:02:54]} 10. h5 {[%clk 0:02:17]}  Bg7 {[%clk 0:02:45]} 11. h6 {[%clk 0:02:16]}  Bd4 {[%clk 0:02:45]} 12. Nxd4 {[%clk 0:02:10]}  Nxd4 {[%clk 0:02:43]} 13. Bg5 {[%clk 0:01:50]}  Nbc6 {[%clk 0:02:34]} 14. f4 {[%clk 0:01:38]}  Be6 {[%clk 0:02:19]} 15. a3 {[%clk 0:01:22]}  Bxc4 {[%clk 0:02:01]} 16. dxc4 {[%clk 0:01:21]}  f6 {[%clk 0:02:01]} 17. Bh4 {[%clk 0:01:21]}  O-O {[%clk 0:01:48]} 18. Rb1 {[%clk 0:01:13]}  Qd7 {[%clk 0:01:45]} 19. Rh3 {[%clk 0:01:08]}  Qe6 {[%clk 0:01:25]} 20. b3 {[%clk 0:01:02]}  Rad8 {[%clk 0:01:15]} 21. Rd3 {[%clk 0:00:56]}  a6 {[%clk 0:01:05]} 22. Bf2 {[%clk 0:00:55]}  b5 {[%clk 0:01:04]} 23. cxb5 {[%clk 0:00:54]}  axb5 {[%clk 0:01:05]} 24. Rb2 {[%clk 0:00:28]}  b4 {[%clk 0:00:59]} 25. axb4 {[%clk 0:00:27]}  cxb4 {[%clk 0:00:54]} 26. Ne2 {[%clk 0:00:24]}  Nb5 {[%clk 0:00:37]} 27. Rbd2 {[%clk 0:00:13]}  Nc3 {[%clk 0:00:31]} 28. Nxc3 {[%clk 0:00:12]}  bxc3 {[%clk 0:00:32]} 29. Rxd8 {[%clk 0:00:12]}  cxd2 {[%clk 0:00:32]} 30. Rxf8+ {[%clk 0:00:11]}  Kxf8 {[%clk 0:00:32]} 31. Qxd2 {[%clk 0:00:12]}  Qxe4 {[%clk 0:00:32]} 32. Kg1 {[%clk 0:00:11]}  Qb1+ {[%clk 0:00:28]} 33. Kh2 {[%clk 0:00:11]}  Qxb3 {[%clk 0:00:28]} 34. Qd7 {[%clk 0:00:11]}  Qc4 {[%clk 0:00:16]} 35. Bg3 {[%clk 0:00:07]}  Kf7 {[%clk 0:00:16]} 36. Qc8 {[%clk 0:00:07]}  Qd5 {[%clk 0:00:12]} 0-1


[Site "https://www.chess.com"]

[Event "Titled Tuesday Blitz November 15 Early 2022"]
[White "Oro, Faustino"]
[Black "Makhmudov, Shukhrat"]
[WhiteFideId "20000197"]
[BlackFideId "14200775"]
[WhiteElo "2066"]
[BlackElo "2135"]
[Result "1-0"]
[Round "01"]
[TimeControl "180+1"]
[Date "2022.11.16"]
[WhiteClock "0:00:49"]
[BlackClock "0:00:15"]

1. e4 {[%clk 0:02:57]}  e5 {[%clk 0:02:54]} 2. Nf3 {[%clk 0:02:56]}  Nc6 {[%clk 0:02:54]} 3. Bb5 {[%clk 0:02:55]}  a6 {[%clk 0:02:54]} 4. Ba4 {[%clk 0:02:55]}  Nf6 {[%clk 0:02:54]} 5. O-O {[%clk 0:02:54]}  Be7 {[%clk 0:02:55]} 6. Re1 {[%clk 0:02:53]}  b5 {[%clk 0:02:55]} 7. Bb3 {[%clk 0:02:53]}  O-O {[%clk 0:02:55]} 8. c3 {[%clk 0:02:53]}  d5 {[%clk 0:02:56]} 9. exd5 {[%clk 0:02:51]}  Nxd5 {[%clk 0:02:56]} 10. Nxe5 {[%clk 0:02:52]}  Nxe5 {[%clk 0:02:57]} 11. Rxe5 {[%clk 0:02:53]}  c6 {[%clk 0:02:58]} 12. d4 {[%clk 0:02:52]}  Bd6 {[%clk 0:02:58]} 13. Re1 {[%clk 0:02:53]}  Qh4 {[%clk 0:02:59]} 14. g3 {[%clk 0:02:54]}  Qh3 {[%clk 0:02:59]} 15. Re4 {[%clk 0:02:54]}  g5 {[%clk 0:02:48]} 16. Qf1 {[%clk 0:02:53]}  Qh5 {[%clk 0:02:27]} 17. Nd2 {[%clk 0:02:45]}  Bf5 {[%clk 0:02:22]} 18. f3 {[%clk 0:02:45]}  Bxe4 {[%clk 0:02:11]} 19. fxe4 {[%clk 0:02:44]}  Ne3 {[%clk 0:02:02]} 20. Qf6 {[%clk 0:02:14]}  Ng4 {[%clk 0:01:58]} 21. Qf3 {[%clk 0:01:59]}  Qxh2+ {[%clk 0:01:54]} 22. Kf1 {[%clk 0:01:59]}  Bxg3 {[%clk 0:01:42]} 23. e5 {[%clk 0:01:42]}  Rae8 {[%clk 0:01:00]} 24. Ne4 {[%clk 0:01:32]}  Qh4 {[%clk 0:00:36]} 25. Qxg4 {[%clk 0:01:13]}  Qh1+ {[%clk 0:00:33]} 26. Ke2 {[%clk 0:01:13]}  Qe1+ {[%clk 0:00:29]} 27. Kd3 {[%clk 0:01:11]}  Qf1+ {[%clk 0:00:15]} 28. Kc2 {[%clk 0:01:07]}  Bf4 {[%clk 0:00:14]} 29. Bxf4 {[%clk 0:00:50]}  Qxf4 {[%clk 0:00:13]} 30. Nf6+ {[%clk 0:00:49]}  Kh8 {[%clk 0:00:12]} 31. Qxf4 {[%clk 0:00:47]}  gxf4 {[%clk 0:00:13]} 32. Nxe8 {[%clk 0:00:47]}  Rxe8 {[%clk 0:00:13]} 33. Rf1 {[%clk 0:00:48]}  Rg8 {[%clk 0:00:14]} 34. Rxf4 {[%clk 0:00:48]}  Rg2+ {[%clk 0:00:15]} 35. Kc1 {[%clk 0:00:49]} 1-0


[Site "https://www.chess.com"]

[Event "Titled Tuesday Blitz November 15 Early 2022"]
[White "Osiecki, Stanislaw"]
[Black "Tomb, Maroun"]
[WhiteFideId "1102990"]
[BlackFideId "5300398"]
[WhiteElo "2088"]
[BlackElo "2544"]
[Result "0-1"]
[Round "01"]
[TimeControl "180+1"]
[Date "2022.11.16"]
[WhiteClock "0:01:57"]
[BlackClock "0:02:14"]

1. e4 {[%clk 0:02:57]}  c5 {[%clk 0:02:59]} 2. c3 {[%clk 0:02:56]}  d6 {[%clk 0:02:59]} 3. d4 {[%clk 0:02:56]}  Nf6 {[%clk 0:02:59]} 4. Bd3 {[%clk 0:02:55]}  e5 {[%clk 0:02:59]} 5. dxe5 {[%clk 0:02:50]}  dxe5 {[%clk 0:02:59]} 6. Nf3 {[%clk 0:02:50]}  Qc7 {[%clk 0:02:57]} 7. O-O {[%clk 0:02:48]}  Be7 {[%clk 0:02:56]} 8. Na3 {[%clk 0:02:47]}  O-O {[%clk 0:02:55]} 9. Nc4 {[%clk 0:02:46]}  Nc6 {[%clk 0:02:55]} 10. a4 {[%clk 0:02:45]}  Bg4 {[%clk 0:02:54]} 11. h3 {[%clk 0:02:44]}  Bh5 {[%clk 0:02:55]} 12. Qe2 {[%clk 0:02:43]}  Rad8 {[%clk 0:02:52]} 13. Bg5 {[%clk 0:02:42]}  h6 {[%clk 0:02:49]} 14. Bh4 {[%clk 0:02:42]}  Nh7 {[%clk 0:02:46]} 15. Bg3 {[%clk 0:02:34]}  Ng5 {[%clk 0:02:41]} 16. Rad1 {[%clk 0:02:25]}  Bxf3 {[%clk 0:02:35]} 17. gxf3 {[%clk 0:02:25]}  Nxh3+ {[%clk 0:02:35]} 18. Kg2 {[%clk 0:02:24]}  Nf4+ {[%clk 0:02:24]} 19. Bxf4 {[%clk 0:02:23]}  exf4 {[%clk 0:02:25]} 20. Rg1 {[%clk 0:02:20]}  Bf6 {[%clk 0:02:19]} 21. Kf1 {[%clk 0:02:17]}  Rfe8 {[%clk 0:02:18]} 22. Rg4 {[%clk 0:02:14]}  a6 {[%clk 0:02:17]} 23. Kg2 {[%clk 0:02:00]}  b5 {[%clk 0:02:16]} 24. Kh2 {[%clk 0:01:58]}  bxc4 {[%clk 0:02:15]} 25. Bxc4 {[%clk 0:01:58]}  Rxd1 {[%clk 0:02:14]} 26. Qxd1 {[%clk 0:01:57]}  Ne5 {[%clk 0:02:14]} 0-1


[Site "https://www.chess.com"]

[Event "Titled Tuesday Blitz November 15 Early 2022"]
[White "Pakleza, Zbigniew"]
[Black "Gu, Xiaobing"]
[WhiteFideId "1119290"]
[BlackFideId "8602611"]
[WhiteElo "2411"]
[BlackElo "2174"]
[Result "1-0"]
[Round "01"]
[TimeControl "180+1"]
[Date "2022.11.16"]
[WhiteClock "0:01:32"]
[BlackClock "0:00:14"]

1. d4 {[%clk 0:03:00]}  Nf6 {[%clk 0:02:54]} 2. Nf3 {[%clk 0:03:01]}  g6 {[%clk 0:02:54]} 3. Bf4 {[%clk 0:03:01]}  Bg7 {[%clk 0:02:54]} 4. e3 {[%clk 0:03:01]}  d6 {[%clk 0:02:54]} 5. h3 {[%clk 0:02:59]}  O-O {[%clk 0:02:54]} 6. Be2 {[%clk 0:02:57]}  Nbd7 {[%clk 0:02:51]} 7. O-O {[%clk 0:02:56]}  Qe8 {[%clk 0:02:48]} 8. c4 {[%clk 0:02:55]}  e5 {[%clk 0:02:43]} 9. Bh2 {[%clk 0:02:55]}  e4 {[%clk 0:02:01]} 10. Nfd2 {[%clk 0:02:55]}  b6 {[%clk 0:01:48]} 11. Nc3 {[%clk 0:02:54]}  Bb7 {[%clk 0:01:42]} 12. b4 {[%clk 0:02:52]}  a5 {[%clk 0:01:38]} 13. a3 {[%clk 0:02:53]}  axb4 {[%clk 0:01:31]} 14. axb4 {[%clk 0:02:54]}  Qe7 {[%clk 0:01:11]} 15. Qb3 {[%clk 0:02:46]}  Rxa1 {[%clk 0:00:44]} 16. Rxa1 {[%clk 0:02:47]}  Ra8 {[%clk 0:00:44]} 17. Rxa8+ {[%clk 0:02:43]}  Bxa8 {[%clk 0:00:44]} 18. Nb5 {[%clk 0:02:44]}  Nf8 {[%clk 0:00:42]} 19. Qa3 {[%clk 0:02:39]}  Bc6 {[%clk 0:00:40]} 20. Nc3 {[%clk 0:02:32]}  h5 {[%clk 0:00:37]} 21. Qa7 {[%clk 0:02:28]}  N8h7 {[%clk 0:00:32]} 22. Bf1 {[%clk 0:02:06]}  Ng5 {[%clk 0:00:29]} 23. Nb3 {[%clk 0:01:53]}  Kh7 {[%clk 0:00:20]} 24. d5 {[%clk 0:01:45]}  Be8 {[%clk 0:00:19]} 25. Nd4 {[%clk 0:01:46]}  Qd8 {[%clk 0:00:17]} 26. Ncb5 {[%clk 0:01:39]}  Nd7 {[%clk 0:00:16]} 27. Qxc7 {[%clk 0:01:31]}  Qxc7 {[%clk 0:00:15]} 28. Nxc7 {[%clk 0:01:32]}  Bxd4 {[%clk 0:00:14]} 29. exd4 {[%clk 0:01:33]}  f5 {[%clk 0:00:14]} 30. Nxe8 {[%clk 0:01:32]} 1-0


[Site "https://www.chess.com"]

[Event "Titled Tuesday Blitz November 15 Early 2022"]
[White "Parligras, Mircea-Emilian"]
[Black "Tarasova, Viktoriya"]
[WhiteFideId "1204297"]
[BlackFideId "4175840"]
[WhiteElo "2507"]
[BlackElo "2182"]
[Result "1-0"]
[Round "01"]
[TimeControl "180+1"]
[Date "2022.11.16"]
[WhiteClock "0:01:02"]
[BlackClock "0:00:11"]

1. d4 {[%clk 0:03:00]}  Nf6 {[%clk 0:02:58]} 2. c4 {[%clk 0:03:00]}  e6 {[%clk 0:02:58]} 3. Nc3 {[%clk 0:02:59]}  Bb4 {[%clk 0:02:57]} 4. Bd2 {[%clk 0:02:59]}  O-O {[%clk 0:02:55]} 5. e3 {[%clk 0:02:58]}  d5 {[%clk 0:02:55]} 6. Nf3 {[%clk 0:02:57]}  b6 {[%clk 0:02:55]} 7. cxd5 {[%clk 0:02:56]}  exd5 {[%clk 0:02:55]} 8. Bd3 {[%clk 0:02:56]}  Bb7 {[%clk 0:02:55]} 9. O-O {[%clk 0:02:56]}  Re8 {[%clk 0:02:53]} 10. Ne5 {[%clk 0:02:55]}  Bd6 {[%clk 0:02:53]} 11. f4 {[%clk 0:02:54]}  a6 {[%clk 0:02:49]} 12. Be1 {[%clk 0:02:50]}  Ne4 {[%clk 0:02:44]} 13. Nxe4 {[%clk 0:02:44]}  dxe4 {[%clk 0:02:43]} 14. Bc4 {[%clk 0:02:45]}  Bxe5 {[%clk 0:02:26]} 15. fxe5 {[%clk 0:02:35]}  Bd5 {[%clk 0:02:25]} 16. Bh4 {[%clk 0:02:32]}  Qd7 {[%clk 0:02:22]} 17. Bxd5 {[%clk 0:02:26]}  Qxd5 {[%clk 0:02:22]} 18. Qg4 {[%clk 0:02:21]}  Nd7 {[%clk 0:02:05]} 19. Rf5 {[%clk 0:02:03]}  Nf8 {[%clk 0:01:44]} 20. Raf1 {[%clk 0:02:00]}  Qxa2 {[%clk 0:01:34]} 21. Rxf7 {[%clk 0:01:48]}  Qxf7 {[%clk 0:01:32]} 22. Rxf7 {[%clk 0:01:49]}  Kxf7 {[%clk 0:01:33]} 23. Qxe4 {[%clk 0:01:49]}  Ng6 {[%clk 0:01:24]} 24. Qd5+ {[%clk 0:01:42]}  Kf8 {[%clk 0:01:24]} 25. Bg3 {[%clk 0:01:37]}  c5 {[%clk 0:00:38]} 26. e6 {[%clk 0:01:20]}  cxd4 {[%clk 0:00:25]} 27. exd4 {[%clk 0:01:18]}  Kg8 {[%clk 0:00:19]} 28. Qe4 {[%clk 0:01:11]}  Rac8 {[%clk 0:00:17]} 29. h4 {[%clk 0:01:07]}  Rc1+ {[%clk 0:00:16]} 30. Kh2 {[%clk 0:01:07]}  Nf8 {[%clk 0:00:17]} 31. d5 {[%clk 0:01:03]}  b5 {[%clk 0:00:12]} 32. e7 {[%clk 0:01:03]}  Ng6 {[%clk 0:00:11]} 33. d6 {[%clk 0:01:02]} 1-0


[Site "https://www.chess.com"]

[Event "Titled Tuesday Blitz November 15 Early 2022"]
[White "Pein, Jonathan"]
[Black "Kobo, Ori"]
[WhiteFideId "417092"]
[BlackFideId "2812320"]
[WhiteElo "2227"]
[BlackElo "2447"]
[Result "0-1"]
[Round "01"]
[TimeControl "180+1"]
[Date "2022.11.16"]
[WhiteClock "0:00:11"]
[BlackClock "0:00:09"]

1. d4 {[%clk 0:02:56]}  Nf6 {[%clk 0:03:00]} 2. f3 {[%clk 0:02:55]}  d5 {[%clk 0:02:57]} 3. e4 {[%clk 0:02:55]}  dxe4 {[%clk 0:02:52]} 4. Nc3 {[%clk 0:02:55]}  e3 {[%clk 0:02:50]} 5. Bxe3 {[%clk 0:02:52]}  e6 {[%clk 0:02:50]} 6. Qd2 {[%clk 0:02:46]}  Bb4 {[%clk 0:02:44]} 7. a3 {[%clk 0:02:45]}  Ba5 {[%clk 0:02:44]} 8. Bg5 {[%clk 0:02:41]}  h6 {[%clk 0:02:43]} 9. Bh4 {[%clk 0:02:41]}  Nbd7 {[%clk 0:02:33]} 10. O-O-O {[%clk 0:02:41]}  g5 {[%clk 0:02:16]} 11. Bg3 {[%clk 0:02:29]}  c6 {[%clk 0:02:08]} 12. Bd3 {[%clk 0:02:29]}  b5 {[%clk 0:02:01]} 13. Nge2 {[%clk 0:02:25]}  b4 {[%clk 0:02:01]} 14. axb4 {[%clk 0:02:24]}  Bxb4 {[%clk 0:02:02]} 15. h4 {[%clk 0:02:12]}  Qa5 {[%clk 0:01:57]} 16. Kb1 {[%clk 0:02:11]}  g4 {[%clk 0:01:45]} 17. Qe3 {[%clk 0:02:09]}  gxf3 {[%clk 0:01:32]} 18. gxf3 {[%clk 0:02:10]}  Nd5 {[%clk 0:01:31]} 19. Nxd5 {[%clk 0:02:09]}  cxd5 {[%clk 0:01:29]} 20. f4 {[%clk 0:01:49]}  Rb8 {[%clk 0:01:11]} 21. f5 {[%clk 0:01:49]}  Rb6 {[%clk 0:01:12]} 22. fxe6 {[%clk 0:01:46]}  fxe6 {[%clk 0:01:10]} 23. Bg6+ {[%clk 0:01:46]}  Kd8 {[%clk 0:01:10]} 24. Nf4 {[%clk 0:01:45]}  Nf6 {[%clk 0:00:58]} 25. Be1 {[%clk 0:01:27]}  Ra6 {[%clk 0:00:45]} 26. c3 {[%clk 0:01:09]}  Qa2+ {[%clk 0:00:45]} 27. Kc1 {[%clk 0:00:52]}  Bd6 {[%clk 0:00:31]} 28. Nd3 {[%clk 0:00:30]}  Rb6 {[%clk 0:00:23]} 29. Bg3 {[%clk 0:00:19]}  Qa1+ {[%clk 0:00:16]} 30. Kc2 {[%clk 0:00:15]}  Qa4+ {[%clk 0:00:15]} 31. Kb1 {[%clk 0:00:14]}  Ba3 {[%clk 0:00:11]} 32. Rd2 {[%clk 0:00:08]}  Ba6 {[%clk 0:00:08]} 33. h5 {[%clk 0:00:07]}  Bc4 {[%clk 0:00:05]} 34. Bh4 {[%clk 0:00:06]}  Be7 {[%clk 0:00:05]} 35. Nc5 {[%clk 0:00:04]}  Qa2+ {[%clk 0:00:06]} 36. Kc1 {[%clk 0:00:04]}  Ne4 {[%clk 0:00:03]} 37. Bxe4 {[%clk 0:00:03]}  Bxh4 {[%clk 0:00:03]} 38. Bb1 {[%clk 0:00:02]}  Qa1 {[%clk 0:00:02]} 39. Rxh4 {[%clk 0:00:01]}  Ba2 {[%clk 0:00:03]} 40. Qd3 {[%clk 0:00:01]}  Rg8 {[%clk 0:00:03]} 41. Qc2 {[%clk 0:00:01]}  Rg1+ {[%clk 0:00:03]} 42. Rd1 {[%clk 0:00:02]}  Bxb1 {[%clk 0:00:03]} 43. Kd2 {[%clk 0:00:02]}  Bxc2 {[%clk 0:00:02]} 44. Rxa1 {[%clk 0:00:01]}  Rxa1 {[%clk 0:00:03]} 45. Kxc2 {[%clk 0:00:02]}  Ra2 {[%clk 0:00:03]} 46. Rf4 {[%clk 0:00:03]}  Raxb2+ {[%clk 0:00:04]} 47. Kd3 {[%clk 0:00:04]}  Rb1 {[%clk 0:00:04]} 48. Rf6 {[%clk 0:00:04]}  Ke7 {[%clk 0:00:05]} 49. Rxh6 {[%clk 0:00:04]}  a5 {[%clk 0:00:05]} 50. Rh7+ {[%clk 0:00:05]}  Ke8 {[%clk 0:00:05]} 51. Ra7 {[%clk 0:00:04]}  Rh1 {[%clk 0:00:05]} 52. Rxa5 {[%clk 0:00:05]}  Rxh5 {[%clk 0:00:05]} 53. Ra8+ {[%clk 0:00:04]}  Ke7 {[%clk 0:00:06]} 54. Ra7+ {[%clk 0:00:05]}  Ke8 {[%clk 0:00:06]} 55. Ra8+ {[%clk 0:00:05]}  Kf7 {[%clk 0:00:06]} 56. Ra7+ {[%clk 0:00:06]}  Kg6 {[%clk 0:00:06]} 57. Re7 {[%clk 0:00:07]}  Rh3+ {[%clk 0:00:05]} 58. Kc2 {[%clk 0:00:07]}  Rh2+ {[%clk 0:00:06]} 59. Kd3 {[%clk 0:00:07]}  Rh3+ {[%clk 0:00:06]} 60. Kc2 {[%clk 0:00:08]}  Re3 {[%clk 0:00:07]} 61. Nd3 {[%clk 0:00:09]}  Re2+ {[%clk 0:00:06]} 62. Kd1 {[%clk 0:00:09]}  Rh2 {[%clk 0:00:05]} 63. Ne5+ {[%clk 0:00:07]}  Kf6 {[%clk 0:00:06]} 64. Rf7+ {[%clk 0:00:08]}  Kg5 {[%clk 0:00:06]} 65. Rf3 {[%clk 0:00:08]}  Rh1+ {[%clk 0:00:06]} 66. Kd2 {[%clk 0:00:09]}  Rb2+ {[%clk 0:00:06]} 67. Ke3 {[%clk 0:00:08]}  Rbb1 {[%clk 0:00:07]} 68. Rf2 {[%clk 0:00:08]}  Rbe1+ {[%clk 0:00:07]} 69. Kd3 {[%clk 0:00:08]}  Rh3+ {[%clk 0:00:07]} 70. Kc2 {[%clk 0:00:09]}  Ree3 {[%clk 0:00:07]} 71. Kd2 {[%clk 0:00:08]}  Rxc3 {[%clk 0:00:07]} 72. Rg2+ {[%clk 0:00:08]}  Kh5 {[%clk 0:00:07]} 73. Rf2 {[%clk 0:00:08]}  Rcg3 {[%clk 0:00:07]} 74. Rf6 {[%clk 0:00:08]}  Rg2+ {[%clk 0:00:07]} 75. Ke1 {[%clk 0:00:08]}  Rh1+ {[%clk 0:00:08]} 76. Rf1 {[%clk 0:00:09]}  Rxf1+ {[%clk 0:00:08]} 77. Kxf1 {[%clk 0:00:10]}  Rd2 {[%clk 0:00:06]} 78. Nf3 {[%clk 0:00:10]}  Ra2 {[%clk 0:00:06]} 79. Ke1 {[%clk 0:00:10]}  Kg6 {[%clk 0:00:07]} 80. Nd2 {[%clk 0:00:10]}  Kf5 {[%clk 0:00:07]} 81. Ke2 {[%clk 0:00:11]}  Ra3 {[%clk 0:00:07]} 82. Kf2 {[%clk 0:00:09]}  Kf4 {[%clk 0:00:07]} 83. Ke2 {[%clk 0:00:10]}  Ra2 {[%clk 0:00:07]} 84. Kd3 {[%clk 0:00:09]}  Rxd2+ {[%clk 0:00:07]} 85. Kxd2 {[%clk 0:00:10]}  Ke4 {[%clk 0:00:08]} 86. Kc3 {[%clk 0:00:10]}  Ke3 {[%clk 0:00:08]} 87. Kc2 {[%clk 0:00:11]}  Kxd4 {[%clk 0:00:09]} 0-1


[Site "https://www.chess.com"]